bitfinex-derivatives/quotes_SOLF0:USTF0_20250404
["timestamp","ask_amount","ask_price","bid_price","bid_amount"]
[1743780336332,58.37393907,119.12,119.04,0.3851]
[1743780336634,0.05514832,119.08,119.05,0.3851]
[1743780336831,8.45734832,119.08,119.04,0.3851]
[1743780337036,0.00741192,119.08,119.07,42.11503796]
[1743780338333,0.00741192,119.08,119.07,0.3851]
[1743780338532,0.00741192,119.08,119.07,42.11503796]
[1743780338933,0.00741192,119.08,119.07,50.51743796]
[1743780339232,0.00741192,119.08,119.07,42.11503796]
[1743780339433,58.37393907,119.16,119.07,42.10762604]
[1743780339731,58.37393907,119.16,119.12,41.72993796]
[1743780339933,58.37393907,119.16,119.12,42.10762604]
[1743780340130,58.37393907,119.16,119.04,58.37393907]
[1743780340340,58.37393907,119.16,119.1,42.10762604]
[1743780340533,1.46089585,119.21,119.14,42.10762604]
[1743780340839,360.45393907,119.28,119.21,0.37768808]
[1743780341038,8.3909,119.24,119.2,0.37768808]
[1743780341227,360.45393907,119.28,119.2,42.10762604]
[1743780341432,0.05914048,119.23,119.18,56.82]
[1743780341631,0.05914048,119.23,119.22,42.10762604]
[1743780341835,0.05914048,119.23,119.19,0.37768808]
[1743780342035,0.05914048,119.23,119.22,50.49942604]
[1743780342231,0.05914048,119.23,119.22,42.10762604]
[1743780343339,58.37393907,119.37,119.22,66.75393907]
[1743780343533,58.37393907,119.37,119.29,42.04848556]
[1743780343736,57.28,119.39,119.32,0.3185476]
[1743780343940,58.37393907,119.4,119.33,42.04848556]
[1743780344129,58.37393907,119.4,119.29,42.04848556]
[1743780344336,58.37393907,119.36,119.29,0.3185476]
[1743780344639,8.3868,119.3,119.21,8.392]
[1743780344832,58.37393907,119.34,119.27,0.3185476]
[1743780345028,58.37393907,119.29,119.24,41.72993796]
[1743780345235,58.37393907,119.34,119.27,0.3185476]
[1743780345435,58.37393907,119.31,119.24,42.04848556]
[1743780345630,8.3894,119.26,119.17,8.3948]
[1743780345830,8.3894,119.26,119.15,115.27393907]
[1743780345831,58.37393907,119.28,119.23,42.04848556]
[1743780346040,58.37393907,119.28,119.24,0.05864056]
[1743780346240,0.05895259,119.27,119.24,0.05864056]
[1743780346434,58.37393907,119.25,119.16,56.78]
[1743780346641,58.37393907,119.25,119.2,42.04848556]
[1743780346840,8.3906,119.24,119.2,0.3185476]
[1743780347140,58.37393907,119.23,119.06,302.08]
[1743780347336,8.3903,119.25,119.2,42.04848556]
[1743780347639,58.37393907,119.28,119.25,42.04848556]
[1743780347942,58.37393907,119.28,119.25,0.3185476]
[1743780348134,1.45948666,119.35,119.27,42.04848556]
[1743780348436,58.37393907,119.31,119.26,42.04848556]
[1743780348739,302.08,119.34,119.27,0.3185476]
[1743780349034,58.37393907,119.33,119.27,42.04848556]
[1743780349235,58.37393907,119.3,119.21,56.5]
[1743780349441,8.3862,119.3,119.29,4.246e-05]
[1743780349639,56.44,119.33,119.26,42.04848556]
[1743780349829,56.44,119.33,119.26,41.72993796]
[1743780350030,8.388,119.28,119.27,42.04848556]
[1743780350230,56.44,119.33,119.24,42.04848556]
[1743780350436,56.44,119.33,119.26,42.04848556]
[1743780350437,58.37393907,119.31,119.26,42.04848556]
[1743780350639,0.05982095,119.3,119.27,42.04848556]
[1743780350942,0.05982095,119.3,119.28,42.04848556]
[1743780351137,8.3886,119.27,119.24,42.04848556]
[1743780351334,58.37393907,119.31,119.24,42.04848556]
[1743780351639,58.37393907,119.31,119.26,0.3185476]
[1743780351942,0.05948488,119.29,119.24,42.04848556]
[1743780352240,0.05948488,119.29,119.17,58.37393907]
[1743780352435,58.37393907,119.31,119.26,42.04848556]
[1743780352634,56.14,119.33,119.26,41.72993796]
[1743780352837,0.06179019,119.3,119.28,42.04848556]
[1743780353136,8.3869,119.29,119.28,42.04848556]
[1743780353336,0.06179019,119.3,119.2,114.51393907]
[1743780353534,58.37393907,119.31,119.25,41.72993796]
[1743780353846,360.45393907,119.34,119.28,42.04848556]
[1743780354138,58.37393907,119.3,119.26,42.04848556]
[1743780354344,58.37393907,119.3,119.25,42.04848556]
[1743780354541,58.37393907,119.3,119.25,0.3185476]
[1743780354743,0.05936347,119.29,119.19,55.96]
[1743780355045,0.05774929,119.25,119.24,42.04848556]
[1743780355343,0.05774929,119.25,119.19,55.96]
[1743780355542,0.00113928,119.25,119.24,42.04848556]
[1743780357541,490.32487392,119.48,119.24,8.38]
[1743780357743,103.34235283,119.43,119.35,42.04734628]
[1743780357938,58.37393907,119.4,119.3,58.37393907]
[1743780358139,103.34235283,119.43,119.36,42.04734628]
[1743780358449,8.3847,119.33,119.32,41.72879868]
[1743780358640,59.83229423,119.4,119.33,42.04734628]
[1743780358841,44.96841376,119.43,119.35,42.04734628]
[1743780359043,0.05399419,119.38,119.35,42.04734628]
[1743780359249,0.05399419,119.38,119.36,42.04734628]
[1743780359449,0.05399419,119.38,119.37,42.04734628]
[1743780359645,0.05399419,119.38,119.35,0.05825047]
[1743780359859,58.37393907,119.36,119.35,5.047e-05]
[1743780360150,66.75593907,119.36,119.35,5.047e-05]
[1743780360350,66.75393907,119.36,119.23,58.7]
[1743780360548,58.37393907,119.32,119.27,41.72879868]
[1743780360751,360.27393907,119.35,119.29,42.04734628]
[1743780360947,360.27393907,119.35,119.28,42.04734628]
[1743780361252,360.27393907,119.35,119.29,0.3185476]
[1743780361450,8.3831,119.35,119.32,0.3185476]
[1743780361650,1.45881367,119.36,119.33,42.04734628]
[1743780361850,0.05399794,119.35,119.32,42.04734628]
[1743780362044,0.05399794,119.35,119.29,55.32]
[1743780362250,0.05399794,119.35,119.31,42.04734628]
[1743780362450,8.43709794,119.35,119.33,0.3185476]
[1743780362651,0.05399794,119.35,119.34,42.04734628]
[1743780362947,0.05399794,119.35,119.33,42.04734628]
[1743780363151,0.05399794,119.35,119.34,42.04734628]
[1743780363345,0.05399794,119.35,119.31,42.04734628]
[1743780363548,0.05399794,119.35,119.31,41.72879868]
[1743780363748,0.05399794,119.35,119.29,55.32]
[1743780364150,8.3847,119.33,119.32,42.04734628]
[1743780364352,0.05399794,119.35,119.32,0.3185476]
[1743780364552,0.05399794,119.35,119.34,42.04734628]
[1743780364754,0.05399794,119.35,119.34,105.43074628]
[1743780364950,33.95191206,119.44,119.34,121.75393907]
[1743780365156,8.3771,119.43,119.42,0.31844966]
[1743780365351,58.37393907,119.45,119.4,42.04724834]
[1743780365860,58.37393907,119.45,119.4,0.31844966]
[1743780366153,58.37393907,119.43,119.41,3.79e-05]
[1743780366355,8.3778,119.42,119.41,3.79e-05]
[1743780366560,58.37393907,119.42,119.19,301.88]
[1743780366761,58.37393907,119.35,119.29,42.04724834]
[1743780366957,8.3862,119.3,119.29,42.04724834]
[1743780367149,58.37393907,119.33,119.23,58.37393907]
[1743780367450,58.37393907,119.33,119.27,42.04724834]
[1743780367761,0.06200666,119.29,119.25,54.9]
[1743780367962,0.06200666,119.29,119.27,8.3877]
[1743780368161,58.37393907,119.37,119.28,42.04724834]
[1743780368463,8.3862,119.3,119.29,42.04724834]
[1743780368651,58.37393907,119.35,119.28,42.04724834]
[1743780368856,58.37393907,119.35,119.29,42.04724834]
[1743780369160,8.3862,119.3,119.29,0.31844966]
[1743780369661,0.06246746,119.31,119.26,54.9]
[1743780369859,0.06246746,119.31,119.3,41.72879868]
[1743780370055,58.37393907,119.35,119.3,42.04724834]
[1743780370257,58.37393907,119.37,119.33,42.04724834]
[1743780370463,58.37393907,119.39,119.35,42.04724834]
[1743780370864,0.06234679,119.38,119.36,0.31844966]
[1743780371059,0.06234679,119.38,119.36,8.382]
[1743780371256,0.06234679,119.38,119.37,41.72879868]
[1743780371456,44.96841376,119.46,119.37,66.75393907]
[1743780371663,44.96841376,119.46,119.45,41.98490155]
[1743780372263,58.37393907,119.5,119.43,54.56]
[1743780372458,58.37393907,119.52,119.48,41.98490155]
[1743780372761,0.05794306,119.51,119.48,41.72879868]
[1743780372961,0.05794306,119.51,119.49,0.05609566]
[1743780373163,58.37393907,119.5,119.39,54.36]
[1743780373356,58.37393907,119.46,119.42,41.98490155]
[1743780373556,58.37393907,119.44,119.41,41.98490155]
[1743780373756,58.37393907,119.46,119.43,41.98490155]
[1743780374162,8.3762,119.45,119.43,41.98490155]
[1743780374458,0.05356325,119.46,119.43,41.98490155]
[1743780374666,0.05356325,119.46,119.45,0.25610287]
[1743780374860,58.37393907,119.49,119.44,41.72879868]
[1743780375165,0.06439641,119.47,119.42,54.04]
[1743780375465,8.3742,119.48,119.47,41.98490155]
[1743780375962,8.3746,119.47,119.42,54.04]
[1743780376163,58.37393907,119.51,119.47,0.25610287]
[1743780376462,58.37393907,119.51,119.47,41.98490155]
[1743780376661,58.37393907,119.49,119.38,58.37393907]
[1743780376854,58.37393907,119.49,119.45,41.98490155]
[1743780377262,59.83067648,119.55,119.48,41.98490155]
[1743780377467,8.3706,119.53,119.5,41.98490155]
[1743780377764,0.061058,119.53,119.51,0.25610287]
[1743780377959,0.061058,119.53,119.45,53.8]
[1743780378167,58.37393907,119.55,119.51,0.25610287]
[1743780378661,0.0578967,119.54,119.46,58.37393907]
[1743780378969,8.3691,119.55,119.53,41.98490155]
[1743780379164,371.03044077,119.61,119.5,53.48]
[1743780379462,416.37429611,119.7,119.5,53.48]
[1743780379463,11.0165017,119.66,119.6,41.98490155]
[1743780379664,58.37393907,119.64,119.58,0.25610287]
[1743780379864,58.37393907,119.63,119.58,41.72879868]
[1743780380061,58.37393907,119.63,119.56,53.5]
[1743780380257,0.05548117,119.64,119.59,41.98490155]
[1743780380566,8.42258226,119.61,119.6,41.98490155]
[1743780380766,0.05808226,119.61,119.59,41.98490155]
[1743780381063,58.42801141,119.61,119.57,41.98490155]
[1743780381271,58.37393907,119.59,119.53,41.98490155]
[1743780381566,58.37393907,119.59,119.54,41.98490155]
[1743780381567,8.3684,119.56,119.54,41.98490155]
[1743780381767,0.05578577,119.57,119.54,41.98490155]
[1743780381964,0.05578577,119.57,119.5,53.46]
[1743780381965,0.05578577,119.57,119.56,41.98490155]
[1743780382162,0.05578577,119.57,119.5,53.46]
[1743780382366,58.42972484,119.57,119.53,41.98490155]
[1743780382569,0.05578577,119.57,119.56,41.98490155]
[1743780382770,8.42358577,119.57,119.56,41.98490155]
[1743780383074,0.05578577,119.57,119.5,53.46]
[1743780383269,8.368,119.56,119.55,41.98490155]
[1743780383467,0.05578577,119.57,119.5,53.46]
[1743780383767,8.37,119.54,119.53,41.98490155]
[1743780384268,8.37,119.54,119.5,53.46]
[1743780384465,8.37,119.54,119.53,41.98490155]
[1743780384669,8.3701,119.53,119.52,41.98490155]
[1743780384859,0.05662509,119.55,119.44,58.37393907]
[1743780384860,58.43056416,119.55,119.49,0.25610287]
[1743780385061,8.3722,119.5,119.49,0.25610287]
[1743780385259,0.0636974,119.53,119.49,52.92]
[1743780385466,0.0636974,119.53,119.52,41.98490155]
[1743780386565,58.37393907,119.62,119.52,100.29514322]
[1743780386770,58.37393907,119.62,119.55,41.92120415]
[1743780386965,58.37393907,119.6,119.56,41.92120415]
[1743780387169,58.37393907,119.58,119.53,41.92120415]
[1743780387367,111.27393907,119.62,119.56,0.19240547]
[1743780387570,111.27393907,119.62,119.56,41.92120415]
[1743780387772,8.3659,119.59,119.58,0.06425617]
[1743780388068,58.43357392,119.6,119.49,52.9]
[1743780388275,58.37393907,119.6,119.56,41.92120415]
[1743780388463,58.37393907,119.6,119.55,41.72879868]
[1743780388664,111.27393907,119.62,119.58,41.92120415]
[1743780388973,8.3665,119.59,119.58,41.92120415]
[1743780389172,0.05467198,119.61,119.58,41.72879868]
[1743780389373,58.37393907,119.6,119.5,58.37393907]
[1743780389569,58.37393907,119.58,119.55,41.92120415]
[1743780389773,0.05457409,119.56,119.55,41.92120415]
[1743780389972,58.37393907,119.61,119.49,52.9]
[1743780390267,8.3693,119.55,119.49,8.3728]
[1743780390469,58.37393907,119.59,119.55,41.92120415]
[1743780390674,8.3683,119.56,119.55,41.92120415]
[1743780390874,8.3683,119.56,119.55,41.72879868]
[1743780391076,8.43098279,119.58,119.55,41.92120415]
[1743780391270,0.06408279,119.58,119.57,41.92120415]
[1743780391471,110.67393907,119.63,119.57,41.92120415]
[1743780391672,8.3679,119.57,119.5,119.20583907]
[1743780391877,58.37393907,119.61,119.56,41.72879868]
[1743780392381,58.37393907,119.59,119.5,52.46]
[1743780392578,58.37393907,119.59,119.54,41.92120415]
[1743780392775,58.37393907,119.55,119.51,0.19240547]
[1743780393081,0.06009839,119.56,119.54,41.92120415]
[1743780393379,58.37393907,119.61,119.55,41.92120415]
[1743780393570,58.37393907,119.61,119.56,41.72879868]
[1743780393773,0.05730109,119.59,119.58,41.92120415]
[1743780393979,58.37393907,119.63,119.59,41.72879868]
[1743780394279,0.06385098,119.6,119.59,41.72879868]
[1743780394483,0.06385098,119.6,119.51,52.0]
[1743780394780,58.37393907,119.63,119.57,0.19240547]
[1743780394981,58.37393907,119.63,119.56,41.72879868]
[1743780395180,0.05750848,119.61,119.57,41.72879868]
[1743780395380,8.3652,119.6,119.58,41.72879868]
[1743780395580,58.37393907,119.71,119.6,41.92120415]
[1743780395804,392.3330652,119.73,119.68,41.72879868]
[1743780395805,149.44700427,119.73,119.68,41.72879868]
[1743780395981,58.37393907,119.69,119.59,51.74]
[1743780396180,58.37393907,119.67,119.63,27.35630415]
[1743780396377,58.37393907,119.67,119.59,51.84]
[1743780396676,0.05802684,119.64,119.62,0.05351168]
[1743780396876,66.73703907,119.63,119.62,1.168e-05]
[1743780397479,75.09703907,119.63,119.52,51.7]
[1743780397785,51.7,119.65,119.58,27.35630415]
[1743780397786,58.37393907,119.61,119.58,27.35630415]
[1743780397986,58.37393907,119.65,119.62,27.16389868]
[1743780398287,58.37393907,119.65,119.59,0.19240547]
[1743780398488,58.37393907,119.61,119.57,27.35630415]
[1743780398786,58.37393907,119.61,119.56,27.35630415]
[1743780398985,58.37393907,119.61,119.56,0.19240547]
[1743780399182,0.05677736,119.6,119.52,51.4]
[1743780399379,58.37393907,119.57,119.54,27.16389868]
[1743780399584,58.43622027,119.57,119.52,27.35630415]
[1743780399789,58.37393907,119.55,119.51,27.35630415]
[1743780399986,8.3708,119.52,119.51,27.16389868]
[1743780400178,0.06353072,119.56,119.53,27.35630415]
[1743780400377,8.3694,119.54,119.53,27.35630415]
[1743780400582,0.05849032,119.56,119.53,58.37393907]
[1743780400787,58.37393907,119.65,119.53,58.37393907]
[1743780400984,58.37393907,119.65,119.61,27.35630415]
[1743780401192,58.37393907,119.69,119.64,27.35630415]
[1743780401387,58.37393907,119.69,119.65,27.35630415]
[1743780401588,0.05681798,119.68,119.61,51.32]
[1743780401790,0.05681798,119.68,119.67,0.19240547]
[1743780401992,0.05681798,119.68,119.66,0.19240547]
[1743780402290,0.05681798,119.68,119.67,27.35630415]
[1743780402486,8.41641798,119.68,119.67,27.35630415]
[1743780402796,0.05681798,119.68,119.61,51.32]
[1743780402999,58.43075705,119.68,119.64,27.35630415]
[1743780403188,58.43075705,119.68,119.61,51.32]
[1743780403396,0.05681798,119.68,119.65,27.35630415]
[1743780403700,0.05681798,119.68,119.65,27.16389868]
[1743780403893,0.05681798,119.68,119.6,51.1]
[1743780404090,8.3653,119.6,119.54,8.3691]
[1743780404284,58.37393907,119.64,119.6,14.04490415]
[1743780404488,58.37393907,119.66,119.61,13.85249868]
[1743780404694,0.05609997,119.63,119.54,51.18]
[1743780404895,58.37393907,119.64,119.59,14.04490415]
[1743780405088,0.06010183,119.6,119.59,13.85249868]
[1743780405287,58.37393907,119.64,119.61,13.85249868]
[1743780405488,58.37393907,119.65,119.61,13.85249868]
[1743780405697,8.365,119.61,119.55,66.74253907]
[1743780405898,0.06387948,119.64,119.61,14.04490415]
[1743780406200,8.3638,119.62,119.61,14.04490415]
[1743780406399,0.06122741,119.64,119.55,58.37393907]
[1743780406600,0.06122741,119.64,119.61,13.85249868]
[1743780406794,8.3638,119.62,119.61,13.85249868]
[1743780406990,58.37393907,119.63,119.53,58.37393907]
[1743780407200,58.37393907,119.63,119.59,14.04490415]
[1743780407402,58.37393907,119.61,119.57,14.04490415]
[1743780407602,58.37393907,119.59,119.55,14.04490415]
[1743780407796,8.3701,119.53,119.52,14.04490415]
[1743780408101,0.05607411,119.54,119.49,0.19240547]
[1743780408297,8.3718,119.51,119.44,50.82]
[1743780408502,0.05983722,119.53,119.45,50.82]
[1743780408698,58.37393907,119.52,119.41,50.8]
[1743780409000,0.06350943,119.5,119.41,50.8]
[1743780409192,0.06350943,119.5,119.42,58.37393907]
[1743780409403,8.3741,119.48,119.41,50.8]
[1743780409703,58.37393907,119.46,119.36,301.12]
[1743780410093,58.37393907,119.46,119.33,109.09393907]
[1743780410295,0.05904968,119.42,119.35,58.37393907]
[1743780410498,58.37393907,119.52,119.41,58.37393907]
[1743780410700,1.45716439,119.55,119.47,58.37393907]
[1743780411003,8.3702,119.53,119.48,50.7]
[1743780411297,58.37393907,119.57,119.48,50.7]
[1743780411798,0.05366093,119.54,119.51,0.0528246]
[1743780412596,8.3707,119.53,119.51,0.0528246]
[1743780412899,0.05366093,119.54,119.51,0.0528246]
[1743780413202,0.05366093,119.54,119.43,50.42]
[1743780413203,8.3733,119.49,119.43,50.42]
[1743780413698,404.58235283,119.57,119.43,108.79393907]
[1743780413899,58.37393907,119.55,119.43,108.79393907]
[1743780414203,0.06273511,119.51,119.49,0.02442568]
[1743780414407,58.37393907,119.55,119.48,50.36]
[1743780414605,0.05670339,119.51,119.49,0.02442568]
[1743780415098,0.05670339,119.51,119.42,50.22]
[1743780415294,58.37393907,119.48,119.29,16.7736]
[1743780415604,58.37393907,119.5,119.39,58.37393907]
[1743780415803,8.3741,119.48,119.38,50.56]
[1743780415993,58.37393907,119.5,119.39,58.37393907]
[1743780416194,0.05812445,119.44,119.39,66.75343907]
[1743780416401,0.05812445,119.44,119.39,58.37393907]
[1743780416700,0.05812445,119.44,119.41,8.3781]
[1743780417105,0.05812445,119.44,119.38,50.56]
[1743780417501,8.3787,119.41,119.34,58.37393907]
[1743780417704,58.37393907,119.46,119.35,50.4]
[1743780417904,0.05495423,119.39,119.35,50.4]
[1743780418102,0.05495423,119.39,119.3,301.24]
[1743780418301,58.37393907,119.42,119.31,108.67393907]
[1743780418498,8.3819,119.37,119.31,50.3]
[1743780418803,58.37393907,119.4,119.31,50.3]
[1743780419005,0.05556328,119.35,119.31,58.6851]
[1743780419206,0.05556328,119.35,119.31,50.3]
[1743780419704,8.43836328,119.35,119.31,50.3]
[1743780420006,0.05556328,119.35,119.31,50.3]
[1743780420400,58.37393907,119.34,119.24,359.73393907]
[1743780420604,58.37393907,119.34,119.24,301.36]
[1743780420807,58.37393907,119.4,119.24,301.36]
[1743780420808,58.37393907,119.4,119.28,58.37393907]
[1743780421006,58.37393907,119.4,119.3,58.37393907]
[1743780421209,58.37393907,119.4,119.29,50.0]
[1743780421605,58.37393907,119.4,119.33,8.3839]
[1743780421905,58.37393907,119.4,119.29,50.0]
[1743780422104,0.06223526,119.38,119.35,0.05289311]
[1743780422305,58.43617433,119.38,119.35,0.05289311]
[1743780422503,58.37393907,119.36,119.25,108.39393907]
[1743780422709,58.37393907,119.38,119.27,58.37393907]
[1743780423008,58.37393907,119.42,119.29,58.37393907]
[1743780423203,8.3803,119.39,119.3,49.96]
[1743780423606,0.06008616,119.36,119.3,49.96]
[1743780423809,0.06008616,119.36,119.35,8.3827]
[1743780424008,107.8195652,119.49,119.35,49.86]
[1743780424303,8.3784,119.42,119.38,8.3802]
[1743780424509,8.3784,119.42,119.35,49.86]
[1743780424707,16.7465,119.49,119.35,49.86]
[1743780425107,0.0539934,119.42,119.39,0.05685206]
[1743780425306,8.3742,119.48,119.43,8.377]
[1743780425606,58.37393907,119.5,119.4,49.68]
[1743780425806,58.37393907,119.54,119.43,58.37393907]
[1743780426112,58.37393907,119.54,119.41,58.37393907]
[1743780426508,0.05646244,119.49,119.46,0.06424164]
[1743780426704,58.37393907,119.52,119.45,49.6]
[1743780426910,0.05624257,119.49,119.46,0.05939677]
[1743780427412,8.3736,119.48,119.46,0.05939677]
[1743780427611,0.05624257,119.49,119.46,0.05939677]
[1743780428815,0.05624257,119.49,119.47,49.26]
[1743780429314,58.37393907,119.6,119.47,115.99393907]
[1743780429517,1.45643258,119.61,119.47,115.99393907]
[1743780429518,58.37393907,119.62,119.5,58.37393907]
[1743780430009,58.37393907,119.64,119.52,58.37393907]
[1743780430207,58.37393907,119.64,119.53,49.14]
[1743780430606,0.0611145,119.6,119.57,8.42589918]
[1743780430807,0.0611145,119.6,119.57,0.05879918]
[1743780431624,0.0611145,119.6,119.58,8.3665]
[1743780431814,0.0611145,119.6,119.58,48.92]
[1743780432018,1.45e-05,119.6,119.58,115.65393907]
[1743780432315,1.45e-05,119.6,119.59,8.3659]
[1743780432714,1.45e-05,119.6,119.59,16.7259]
[1743780432914,1.45e-05,119.6,119.58,48.92]
[1743780433617,1.45e-05,119.6,119.59,8.3659]
[1743780433818,58.37393907,119.73,119.62,58.37393907]
[1743780434018,58.37393907,119.75,119.65,8.3612]
[1743780434218,8.358,119.71,119.63,48.72]
[1743780434415,58.37393907,119.73,119.63,48.72]
[1743780434720,58.37393907,119.75,119.63,48.72]
[1743780434917,0.05906394,119.69,119.67,0.05716404]
[1743780435821,8.3596,119.68,119.67,0.05716404]
[1743780436021,0.05906394,119.69,119.46,1891.62393907]
[1743780436218,58.37393907,119.68,119.6,48.5]
[1743780436417,58.37393907,119.7,119.56,48.46]
[1743780436624,58.37393907,119.66,119.56,48.46]
[1743780436922,8.3628,119.64,119.56,48.46]
[1743780437220,58.37393907,119.66,119.56,48.46]
[1743780437431,48.4,119.67,119.59,0.05858822]
[1743780437432,8.3652,119.6,119.59,0.05858822]
[1743780437615,0.06061156,119.61,119.54,48.4]
[1743780437812,58.37393907,119.64,119.54,48.4]
[1743780438019,8.3626,119.64,119.54,48.4]
[1743780438225,58.37393907,119.68,119.57,58.37393907]
[1743780438520,58.37393907,119.66,119.54,48.4]
[1743780438722,58.43767375,119.64,119.54,48.4]
[1743780438920,58.37393907,119.62,119.54,48.4]
[1743780439124,58.37393907,119.6,119.48,58.37393907]
[1743780439420,58.37393907,119.58,119.5,8.3716]
[1743780439621,8.3682,119.56,119.5,8.3716]
[1743780439826,58.37393907,119.58,119.46,58.37393907]
[1743780440022,0.05326121,119.54,119.52,0.05494441]
[1743780442124,58.37393907,119.63,119.53,48.06]
[1743780442425,11.0165017,119.7,119.6,58.37393907]
[1743780442722,8.3593,119.69,119.6,106.53393907]
[1743780442919,11.0165017,119.7,119.6,48.16]
[1743780443220,58.37393907,119.69,119.6,48.16]
[1743780443523,0.05378763,119.66,119.64,0.05974641]
[1743780445225,8.3625,119.64,119.58,47.94]
[1743780445425,106.31393907,119.69,119.58,106.31393907]
[1743780445814,58.37393907,119.71,119.6,58.37393907]
[1743780446018,58.37393907,119.76,119.58,106.31393907]
[1743780446019,58.37393907,119.69,119.58,106.31393907]
[1743780446215,0.05374509,119.65,119.62,0.04845921]
[1743780447425,0.05374509,119.65,119.62,8.41195921]
[1743780447726,0.05374509,119.65,119.62,0.04845921]
[1743780447921,0.05374509,119.65,119.63,8.3629]
[1743780448120,0.05374509,119.65,119.63,47.7]
[1743780448724,359.49393907,119.75,119.64,58.37393907]
[1743780448920,58.37393907,119.77,119.66,58.37393907]
[1743780449122,58.37393907,119.79,119.68,58.37393907]
[1743780449423,58.37393907,119.79,119.7,8.3578]
[1743780449624,58.37393907,119.79,119.69,47.62]
[1743780449826,0.05963292,119.76,119.73,0.06257305]
[1743780451032,58.37393907,119.85,119.74,105.95393907]
[1743780451425,58.37393907,119.85,119.75,8.3547]
[1743780451626,58.37393907,119.86,119.75,8.3547]
[1743780451835,58.37393907,119.86,119.74,105.95393907]
[1743780452030,44.96841376,119.88,119.76,58.37393907]
[1743780452230,0.05420431,119.81,119.79,0.05537657]
[1743780452631,58.37393907,119.86,119.74,105.95393907]
[1743780452827,0.05983768,119.81,119.79,0.05534504]
[1743780453035,105.87393907,119.8,119.67,58.37393907]
[1743780453234,58.37393907,119.76,119.65,105.87393907]
[1743780453436,58.37393907,119.76,119.65,47.5]
[1743780453640,58.37393907,119.75,119.65,47.5]
[1743780454141,8.3557,119.74,119.67,8.3599]
[1743780454341,0.05425992,119.71,119.69,0.06331928]
[1743780455237,8.41215992,119.71,119.69,0.06331928]
[1743780455441,0.05425992,119.71,119.69,0.06331928]
[1743780456348,0.05425992,119.71,119.7,8.3582]
[1743780456842,58.37393907,119.78,119.7,8.3582]
[1743780457044,58.37393907,119.78,119.69,0.06331928]
[1743780457240,58.37393907,119.78,119.67,58.37393907]
[1743780457548,8.3548,119.75,119.7,55.4575]
[1743780457747,58.37393907,119.78,119.7,47.1]
[1743780457947,0.06085938,119.74,119.71,0.0541129]
[1743780458138,0.06085938,119.74,119.71,8.3574]
[1743780458448,0.06085938,119.74,119.71,0.05568722]
[1743780460744,58.43479845,119.74,119.71,0.05568722]
[1743780460948,0.06085938,119.74,119.71,0.05568722]
[1743780462145,8.3568,119.72,119.71,0.05568722]
[1743780462646,58.37393907,119.72,119.63,347.72]
[1743780463042,8.3607,119.67,119.62,8.3633]
[1743780463442,58.37393907,119.7,119.6,46.72]
[1743780463639,8.361,119.66,119.61,8.3641]
[1743780463850,8.41793401,119.66,119.64,0.060362]
[1743780464258,0.05693401,119.66,119.57,300.8]
[1743780464448,58.43087308,119.66,119.55,58.37393907]
[1743780464648,58.37393907,119.66,119.56,46.64]
[1743780464848,105.05393907,119.7,119.57,58.37393907]
[1743780464849,58.37393907,119.68,119.57,58.37393907]
[1743780465049,105.05393907,119.7,119.59,58.37393907]
[1743780465252,58.37393907,119.7,119.59,58.37393907]
[1743780465455,58.37393907,119.72,119.59,58.37393907]
[1743780465657,58.37393907,119.74,119.63,58.41864195]
[1743780465860,58.37393907,119.74,119.64,46.58]
[1743780466153,58.37393907,119.75,119.64,46.58]
[1743780466354,58.37393907,119.75,119.65,58.37393907]
[1743780466549,44.96841376,119.76,119.69,58.37393907]
[1743780466854,44.96841376,119.76,119.65,58.37393907]
[1743780466855,0.05563461,119.74,119.71,58.42764283]
[1743780467056,74.33185812,119.84,119.73,8.3561]
[1743780467457,74.33185812,119.84,119.71,58.37393907]
[1743780468054,58.37393907,119.83,119.74,8.355]
[1743780468356,0.06387991,119.77,119.75,46.43601536]
[1743780468558,8.3523,119.79,119.75,46.38]
[1743780468758,74.33185812,119.84,119.76,58.37393907]
[1743780469358,58.37393907,119.88,119.76,58.37393907]
[1743780469856,58.37393907,119.88,119.79,8.3515]
[1743780470049,0.0591702,119.83,119.81,0.05542506]
[1743780470246,8.3486,119.84,119.8,46.34]
[1743780470456,0.06042061,119.83,119.81,0.05375197]
[1743780470853,11.0165017,119.9,119.82,58.37393907]
[1743780471158,11.0165017,119.9,119.8,46.34]
[1743780471352,8.3481,119.85,119.8,46.34]
[1743780471761,58.37393907,119.92,119.8,46.34]
[1743780471959,58.37393907,119.9,119.8,46.34]
[1743780472161,0.06199783,119.84,119.81,0.05997356]
[1743780472361,0.06199783,119.84,119.8,46.34]